bitfinex/quotes_BTCUSD_20230110
["timestamp","ask_amount","ask_price","bid_price","bid_amount"]
[1673389786917,0.00206796,17440.0,17439.0,6.41626767]
[1673389787158,0.01506796,17440.0,17439.0,6.44826767]
[1673389787404,0.00206796,17440.0,17439.0,6.41626767]
[1673389787646,0.01506796,17440.0,17439.0,5.93331185]
[1673389788393,0.01506796,17440.0,17439.0,6.44817715]
[1673389789637,0.01506796,17440.0,17439.0,5.93331185]
[1673389789896,0.01506796,17440.0,17439.0,6.44817521]
[1673389790919,0.01506796,17440.0,17439.0,5.93331185]
[1673389792214,0.00799416,17440.0,17439.0,5.93331185]
[1673389793229,0.00799416,17440.0,17439.0,5.63287371]
[1673389793480,0.00799416,17440.0,17439.0,6.14783722]
[1673389793729,0.00799416,17440.0,17439.0,6.14783328]
[1673389794730,0.00799416,17440.0,17439.0,6.44783328]
[1673389797745,0.00799416,17440.0,17439.0,6.44777642]
[1673389797989,0.00799416,17440.0,17439.0,5.85808663]
[1673389799227,0.00799416,17440.0,17439.0,5.85809663]
[1673389801866,0.00557116,17440.0,17439.0,6.44805116]
[1673389802118,0.00273888,17440.0,17439.0,5.85809663]
[1673389802371,0.00105738,17440.0,17439.0,6.44810536]
[1673389802878,0.00105738,17440.0,17439.0,6.46767397]
[1673389803120,0.00105738,17440.0,17439.0,5.87766524]
[1673389803882,0.00105738,17440.0,17439.0,6.46774276]
[1673389805397,0.00105738,17440.0,17439.0,5.87766524]
[1673389808972,0.00105738,17440.0,17439.0,6.4677893]
[1673389809513,0.00105738,17440.0,17439.0,5.87766524]
[1673389811004,0.00105738,17440.0,17439.0,5.36292692]
[1673389811231,0.00105738,17440.0,17439.0,5.9531056]
[1673389811847,0.00105738,17440.0,17439.0,5.36292692]
[1673389812121,0.00052014,17440.0,17439.0,5.95293651]
[1673389812377,0.00052014,17440.0,17439.0,5.95293558]
[1673389815208,0.00052014,17440.0,17439.0,5.66624558]
[1673389815455,0.00052014,17440.0,17439.0,5.95293558]
[1673389816234,0.00052014,17440.0,17439.0,5.36292692]
[1673389816723,0.00052014,17440.0,17439.0,5.95303504]
[1673389816973,0.00052014,17440.0,17439.0,5.36292692]
[1673389817466,0.00052014,17440.0,17439.0,5.9529794]
[1673389817721,0.00052014,17440.0,17439.0,7.44820448]
[1673389817963,0.00052014,17440.0,17439.0,6.858152]
[1673389818704,0.00052014,17440.0,17439.0,6.88094289]
[1673389820217,0.00052014,17440.0,17439.0,6.88093289]
[1673389822184,0.00025503,17440.0,17439.0,6.88093289]
[1673389822447,0.00282802,17441.0,17439.0,6.88093289]
[1673389822712,0.00282802,17441.0,17440.0,1.80915952]
[1673389822966,0.00282802,17441.0,17440.0,3.13111804]
[1673389824094,0.01582802,17441.0,17440.0,3.13111804]
[1673389824286,0.00282802,17441.0,17440.0,3.13111804]
[1673389824837,0.00282802,17441.0,17440.0,3.86589296]
[1673389825092,0.00282802,17441.0,17440.0,3.86589158]
[1673389825607,0.01582802,17441.0,17440.0,4.6706922]
[1673389827358,0.01582802,17441.0,17440.0,3.90989158]
[1673389828938,0.01582802,17441.0,17440.0,3.17511804]
[1673389835376,0.01582802,17441.0,17440.0,3.19552594]
[1673389839029,0.01582802,17441.0,17440.0,3.71147449]
[1673389839327,0.01582802,17441.0,17440.0,3.19552594]
[1673389840227,0.01582802,17441.0,17440.0,3.48220594]
[1673389840502,0.01572988,17441.0,17440.0,3.48220594]
[1673389841521,0.01572988,17441.0,17440.0,3.99815139]
[1673389841986,0.01572988,17441.0,17440.0,3.48220594]
[1673389842505,0.01137273,17441.0,17440.0,3.48220594]
[1673389844291,0.01137273,17441.0,17440.0,3.99815217]
[1673389845016,0.01137273,17441.0,17440.0,3.48220594]
[1673389845505,0.01137273,17441.0,17440.0,3.99813944]
[1673389845731,0.01137273,17441.0,17440.0,3.48220594]
[1673389845981,0.01137273,17441.0,17440.0,3.99813899]
[1673389848298,0.01137273,17441.0,17440.0,3.48220594]
[1673389852044,0.01137273,17441.0,17440.0,4.21759651]
[1673389852533,0.01137273,17441.0,17440.0,4.21760023]
[1673389853312,0.01137273,17441.0,17440.0,4.2175937]
[1673389853535,0.01137273,17441.0,17440.0,3.48220594]
[1673389857511,0.01137273,17441.0,17440.0,3.50499683]
[1673389858022,0.01137273,17441.0,17440.0,4.24064914]
[1673389858504,0.01137273,17441.0,17440.0,3.48220594]
[1673389861224,0.01137273,17441.0,17440.0,3.48219594]
[1673389861476,0.01137273,17441.0,17440.0,4.21810314]
[1673389862550,0.00737268,17441.0,17440.0,4.21810314]
[1673389864330,0.00737268,17441.0,17440.0,4.97890376]
[1673389864852,0.00737268,17441.0,17440.0,4.21810314]
[1673389866669,0.00737268,17441.0,17440.0,4.97890376]
[1673389868417,0.00737268,17441.0,17440.0,5.58190376]
[1673389870666,0.00356073,17441.0,17440.0,5.58190376]
[1673389871712,0.00356073,17441.0,17440.0,6.17131708]
[1673389874268,0.00356073,17441.0,17440.0,6.17130708]
[1673389877615,0.00356073,17441.0,17440.0,6.17101269]
[1673389878876,0.01556073,17441.0,17440.0,6.22301269]
[1673389880651,0.00590158,17441.0,17440.0,5.63389376]
[1673389882477,0.00227665,17441.0,17440.0,5.63389376]
[1673389882694,0.00227665,17441.0,17440.0,6.22297151]
[1673389885911,0.00227665,17441.0,17440.0,5.63389376]
[1673389886411,0.00227665,17441.0,17440.0,6.22286938]
[1673389886670,0.00227665,17441.0,17440.0,6.22286992]
[1673389887930,0.00227665,17441.0,17440.0,5.63389376]
[1673389888178,0.00418184,17443.0,17441.0,0.05]
[1673389888433,1.37170687,17449.0,17443.0,0.05]
[1673389888434,0.16778687,17449.0,17443.0,0.05]
[1673389888679,1.01228792,17448.0,17445.0,0.17182159]
[1673389888958,0.40869628,17448.0,17446.0,1.40481556]
[1673389889420,1.010275,17448.0,17446.0,1.16713767]
[1673389890419,0.40869628,17448.0,17446.0,1.16713767]
[1673389890675,0.41969628,17448.0,17446.0,1.23413767]
[1673389890930,0.40869628,17448.0,17446.0,1.16713767]
[1673389891174,0.011,17448.0,17446.0,1.23413767]
[1673389891420,0.67915221,17448.0,17446.0,1.16713767]
[1673389891649,0.359209,17447.0,17446.0,1.23413767]
[1673389891885,1.29173093,17448.0,17446.0,1.23413767]
[1673389892143,0.69015221,17448.0,17446.0,1.23413767]
[1673389892405,0.359107,17447.0,17446.0,1.23413767]
[1673389892661,0.69015221,17448.0,17446.0,1.23413767]
[1673389892662,1.28972805,17448.0,17446.0,1.23413767]
[1673389892938,0.67915221,17448.0,17446.0,1.16713767]
[1673389893194,0.359107,17447.0,17446.0,1.23413767]
[1673389893995,1.27872805,17448.0,17446.0,1.16713767]
[1673389894245,0.67915221,17448.0,17446.0,1.16713767]
[1673389894496,0.359107,17447.0,17446.0,1.24413767]
[1673389894758,0.01,17447.0,17446.0,1.24413767]
[1673389895529,1.27872805,17448.0,17446.0,1.16713767]
[1673389895785,0.68915221,17448.0,17446.0,1.24413767]
[1673389896040,0.359107,17447.0,17446.0,1.16713767]
[1673389896297,0.01,17447.0,17446.0,1.24413767]
[1673389896547,1.6215621,17448.0,17446.0,1.16713767]
[1673389896796,1.03198626,17448.0,17446.0,1.24413767]
[1673389897053,0.359107,17447.0,17446.0,1.16713767]
[1673389897306,0.01,17447.0,17446.0,1.24413767]
[1673389898802,1.19341673,17448.0,17446.0,1.16713767]
[1673389899064,0.86058268,17448.0,17446.0,1.24413767]
[1673389899318,0.359107,17447.0,17446.0,1.16713767]
[1673389899573,0.369107,17447.0,17446.0,1.24413767]
[1673389899813,0.85058268,17448.0,17446.0,1.16713767]
[1673389900065,0.86058268,17448.0,17446.0,1.24413767]
[1673389900379,0.359107,17447.0,17446.0,1.16713767]
[1673389900572,0.369107,17447.0,17446.0,1.24413767]
[1673389901350,0.01,17447.0,17446.0,1.24413767]
[1673389901629,0.85058268,17448.0,17446.0,1.16713767]
[1673389901893,0.86058268,17448.0,17446.0,1.24413767]
[1673389902157,0.359107,17447.0,17446.0,1.16713767]
[1673389902437,0.01,17447.0,17446.0,1.24413767]
[1673389902689,0.85058268,17448.0,17446.0,1.16713767]
[1673389903005,0.86058268,17448.0,17446.0,1.24413767]
[1673389903257,0.359107,17447.0,17446.0,1.16713767]
[1673389903507,0.359107,17447.0,17446.0,1.24413767]
[1673389903508,0.01,17447.0,17446.0,1.24413767]
[1673389904822,0.85058268,17448.0,17446.0,1.24413767]
[1673389905112,0.86058268,17448.0,17446.0,1.16713767]
[1673389905368,0.369107,17447.0,17446.0,1.24413767]
[1673389905626,1.45015852,17448.0,17446.0,1.16713767]
[1673389905886,0.86058268,17448.0,17446.0,1.24413767]
[1673389906143,0.359107,17447.0,17446.0,1.16713767]
[1673389906392,0.85058268,17448.0,17446.0,1.41595926]
[1673389906637,0.01,17447.0,17446.0,1.16713767]
[1673389906859,0.369107,17447.0,17446.0,1.16713767]
[1673389907105,0.01,17447.0,17446.0,1.16713767]
[1673389907366,0.01,17447.0,17446.0,1.33895926]
[1673389907620,0.01,17447.0,17446.0,1.24413767]
[1673389907864,0.85058268,17448.0,17446.0,1.91215626]
[1673389908122,0.01,17447.0,17446.0,1.81733467]
[1673389908914,0.01,17447.0,17446.0,1.98915626]
[1673389911723,0.18143047,17447.0,17446.0,1.81733467]
[1673389913214,0.01,17447.0,17446.0,2.25336597]
[1673389929280,0.01,17447.0,17446.0,2.81683753]
[1673389932315,0.12864529,17448.0,17446.0,4.1572173]
[1673389932574,0.02864529,17448.0,17447.0,2.71001818]
[1673389932830,0.02864529,17448.0,17447.0,3.3046341]
[1673389933079,0.02864529,17448.0,17447.0,3.51258326]
[1673389934085,0.02864529,17448.0,17447.0,3.85611753]
[1673389934300,0.03764529,17448.0,17447.0,3.85611753]
[1673389934603,0.02864529,17448.0,17447.0,3.85611753]
[1673389934854,0.03764529,17448.0,17447.0,3.94211753]
[1673389935899,0.03764529,17448.0,17447.0,3.76998412]
[1673389936403,0.03764529,17448.0,17447.0,4.10072635]
[1673389936663,0.03764529,17448.0,17447.0,4.39096574]
[1673389937434,5.29e-06,17448.0,17447.0,4.39096574]
[1673389938983,5.29e-06,17448.0,17447.0,3.50072635]
[1673389939280,5.29e-06,17448.0,17447.0,3.62887635]
[1673389939505,5.29e-06,17448.0,17447.0,3.32313718]
[1673389939767,5.29e-06,17448.0,17447.0,3.66447723]
[1673389940014,5.29e-06,17448.0,17447.0,3.62313718]
[1673389940263,5.29e-06,17448.0,17447.0,3.96444248]
[1673389940522,5.29e-06,17448.0,17447.0,3.62313718]
[1673389940772,5.29e-06,17448.0,17447.0,3.964443]
[1673389943348,5.29e-06,17448.0,17447.0,3.66445437]
[1673389943829,5.29e-06,17448.0,17447.0,3.06556694]
[1673389944329,5.29e-06,17448.0,17447.0,3.36556694]
[1673389944574,5.29e-06,17448.0,17447.0,3.06556694]
[1673389944833,5.29e-06,17448.0,17447.0,3.66444701]
[1673389945611,5.29e-06,17448.0,17447.0,3.96444701]
[1673389947805,5.29e-06,17448.0,17447.0,4.30798128]
[1673389948057,5.29e-06,17448.0,17447.0,3.96444701]
[1673389951462,5.29e-06,17448.0,17447.0,4.13629701]
[1673389951945,5.29e-06,17448.0,17447.0,3.96437028]
[1673389952206,5.29e-06,17448.0,17447.0,4.13629701]
[1673389953865,5.29e-06,17448.0,17447.0,3.66437008]
[1673389955835,5.29e-06,17448.0,17447.0,3.96437008]
[1673389956606,5.29e-06,17448.0,17447.0,3.66437008]
[1673389957050,5.29e-06,17448.0,17447.0,3.66466163]
[1673389957270,5.29e-06,17448.0,17447.0,3.3233518]
[1673389958001,0.01,17450.0,17448.0,0.00010081]
[1673389958261,0.01,17450.0,17449.0,1.032205]
[1673389958524,0.01,17450.0,17449.0,0.673098]
[1673389959298,0.018,17450.0,17449.0,0.673098]
[1673389959549,0.018,17450.0,17449.0,1.273098]
[1673389960303,0.01,17450.0,17449.0,1.273098]
[1673389960563,0.012,17450.0,17449.0,1.301098]
[1673389963649,0.6006846,17450.0,17449.0,1.301098]
[1673389969442,0.012,17450.0,17449.0,1.89504567]
[1673389970234,0.012,17450.0,17449.0,2.06665301]
[1673389970485,0.012,17450.0,17449.0,2.63975101]
[1673389972018,0.012,17450.0,17449.0,2.89732125]
[1673389973287,0.012,17450.0,17449.0,2.63975101]
[1673389973573,0.012,17450.0,17449.0,2.89732125]
[1673389974566,0.012,17450.0,17449.0,3.23952669]
[1673389977641,0.012,17450.0,17449.0,3.23949398]
[1673389977891,0.012,17450.0,17449.0,2.89732125]
[1673389978423,0.012,17450.0,17449.0,3.23936304]
[1673389978866,0.012,17450.0,17449.0,3.23965454]
[1673389979356,0.17143115,17451.0,17450.0,0.1]
[1673389979632,1.11697939,17452.0,17450.0,1.0958645]
[1673389979889,1.11697939,17452.0,17451.0,0.00029148]
[1673389982168,1.11697939,17452.0,17450.0,1.1048645]
[1673389982416,1.11697939,17452.0,17450.0,1.0958645]
[1673389982676,1.20397939,17452.0,17451.0,0.009]
[1673389983189,1.20397939,17452.0,17450.0,1.0958645]
[1673389983190,1.11697939,17452.0,17450.0,1.0958645]
[1673389983452,0.85983334,17452.0,17450.0,1.0958645]
[1673389983732,0.94683334,17452.0,17450.0,1.1048645]
[1673389984488,0.94683334,17452.0,17450.0,1.6779295]
[1673389984739,0.94683334,17452.0,17450.0,1.93549974]
[1673389984991,0.94683334,17452.0,17450.0,2.27187717]
[1673389985250,0.94683334,17452.0,17450.0,2.52944741]
[1673389985498,0.94683334,17452.0,17450.0,3.12944741]
[1673389985751,0.77540219,17452.0,17451.0,0.26228225]
[1673389986522,0.68840219,17452.0,17451.0,0.26228225]
[1673389987032,0.68840219,17452.0,17451.0,0.27128225]
[1673389987033,0.77540219,17452.0,17451.0,0.27128225]
[1673389989030,0.09251673,17452.0,17451.0,0.27128225]
[1673389998273,0.09251673,17452.0,17451.0,0.84431525]
[1673390002641,0.09241968,17452.0,17451.0,0.84431525]
[1673390016088,0.09241968,17452.0,17451.0,1.01621078]
[1673390017533,0.09241968,17452.0,17451.0,0.44317778]
[1673390019071,0.26385083,17452.0,17451.0,0.27128225]
[1673390019348,0.52099688,17452.0,17451.0,0.27128225]
[1673390019602,0.26385083,17452.0,17451.0,0.27128225]
[1673390022479,0.26385083,17452.0,17451.0,0.46624416]
[1673390027686,0.26385083,17452.0,17451.0,1.06624416]
[1673390030255,0.26385083,17452.0,17451.0,0.89434863]
[1673390030516,0.52099688,17452.0,17451.0,0.89434863]
[1673390030794,0.26385083,17452.0,17451.0,1.06624416]
[1673390032722,0.09241968,17452.0,17451.0,1.8968474]
[1673390033475,0.09241968,17452.0,17451.0,2.237881]
[1673390033727,0.09241968,17452.0,17451.0,1.66482274]
[1673390033975,0.09241968,17452.0,17451.0,1.3238144]
[1673390034730,0.09241968,17452.0,17451.0,1.66482205]
[1673390035508,0.09241968,17452.0,17451.0,1.66484118]
[1673390035996,0.09241968,17452.0,17451.0,1.32383353]
[1673390036715,0.09241968,17452.0,17451.0,1.66482426]
[1673390037177,0.09241968,17452.0,17451.0,1.66482433]
[1673390039680,0.09241968,17452.0,17451.0,1.32383353]
[1673390039926,0.09241968,17452.0,17451.0,2.23824126]
[1673390040423,0.09241968,17452.0,17451.0,1.89686653]
[1673390040699,0.09241968,17452.0,17451.0,2.23824207]
[1673390044597,0.09241968,17452.0,17451.0,1.63824207]
[1673390044846,0.09241968,17452.0,17451.0,1.63929629]
[1673390045351,0.09241968,17452.0,17451.0,1.46738163]
[1673390045856,0.09241968,17452.0,17451.0,1.63929629]
[1673390049865,0.09241968,17452.0,17451.0,1.06626329]
[1673390050122,0.09241968,17452.0,17451.0,1.63929629]
[1673390053836,0.09241968,17452.0,17451.0,1.63923359]
[1673390054359,0.26385083,17452.0,17451.0,1.46731893]
[1673390057618,0.09241968,17452.0,17451.0,1.63923359]
[1673390057863,0.09241968,17452.0,17451.0,0.86731893]
[1673390058116,0.09241968,17452.0,17451.0,1.63923359]
[1673390058854,0.09241968,17452.0,17451.0,1.46731893]
[1673390059068,0.09241968,17452.0,17451.0,1.63923359]
[1673390059316,0.09241968,17452.0,17451.0,0.46620059]
[1673390059564,0.09241968,17452.0,17451.0,1.06620059]
[1673390059817,0.26385083,17452.0,17451.0,0.89428593]
[1673390062072,0.26385083,17452.0,17451.0,1.46731893]
[1673390062323,0.26385083,17452.0,17451.0,1.32211893]
[1673390062994,0.26385083,17452.0,17451.0,1.20509938]
[1673390064717,0.86025398,17452.0,17451.0,1.20509938]
[1673390064994,0.86025398,17452.0,17451.0,0.03206638]
[1673390064995,1.47650703,17452.0,17451.0,0.03206638]
[1673390065283,2.65879065,17452.0,17451.0,0.03206638]
[1673390065501,2.06569201,17452.0,17451.0,0.03206638]
[1673390065778,2.63864498,17452.0,17451.0,0.03206638]
[1673390066030,2.8889566,17452.0,17451.0,0.03206638]
[1673390067926,3.23159056,17452.0,17451.0,0.03206638]
[1673390068341,3.23159212,17452.0,17451.0,0.03206638]
[1673390069084,3.23158988,17452.0,17451.0,0.03206638]
[1673390069576,3.38239291,17452.0,17451.0,0.03206638]
[1673390069829,3.23158988,17452.0,17451.0,0.03206638]
[1673390070589,2.72444862,17452.0,17451.0,0.03206638]
[1673390070841,2.81355401,17452.0,17451.0,0.03206638]
[1673390071346,2.22045537,17452.0,17451.0,0.03206638]
[1673390071872,2.81355401,17452.0,17451.0,0.03206638]
[1673390072122,2.98134088,17452.0,17451.0,0.03206638]
[1673390072405,2.72444862,17452.0,17451.0,0.03206638]
[1673390072899,3.23228868,17452.0,17451.0,0.03206638]
[1673390073153,3.80528868,17452.0,17451.0,0.03206638]
[1673390073671,3.29744862,17452.0,17451.0,0.03206638]
[1673390075276,3.38646202,17452.0,17451.0,0.03206638]
[1673390075730,3.29744862,17452.0,17451.0,0.03206638]
[1673390075731,3.12966175,17452.0,17451.0,0.03206638]
[1673390075983,3.38643487,17452.0,17451.0,0.03206638]
[1673390076995,3.38644457,17452.0,17451.0,0.03206638]
[1673390077246,3.29744862,17452.0,17451.0,0.03206638]
[1673390077469,2.72444862,17452.0,17451.0,0.03206638]
[1673390078021,2.81342255,17452.0,17451.0,0.03206638]
[1673390078786,2.98120942,17452.0,17451.0,0.03206638]
[1673390079033,2.72444862,17452.0,17451.0,0.03206638]
[1673390079556,3.23234364,17452.0,17451.0,0.03206638]
[1673390081777,2.72444862,17452.0,17451.0,0.03206638]
[1673390084043,3.23238982,17452.0,17451.0,0.03206638]
[1673390084305,2.72444862,17452.0,17451.0,0.03206638]
[1673390085567,2.72444862,17452.0,17451.0,0.03200503]
[1673390086570,3.23237271,17452.0,17451.0,0.03200503]
[1673390089525,2.93533201,17452.0,17451.0,0.03200503]
[1673390089735,3.56553252,17452.0,17451.0,0.03200503]
[1673390090218,3.26617007,17452.0,17451.0,0.03200503]
[1673390091529,3.17917007,17452.0,17451.0,0.02306638]
[1673390091765,3.17917007,17452.0,17451.0,0.02406638]
[1673390091986,3.31517007,17452.0,17451.0,0.02406638]
[1673390093399,3.89424166,17452.0,17451.0,0.02406638]
[1673390093643,3.89424166,17452.0,17449.0,0.1]
[1673390093644,0.00857336,17450.0,17449.0,0.1]
[1673390093849,1.85621169,17450.0,17449.0,0.1]
[1673390094126,2.87731199,17450.0,17449.0,0.1]
[1673390094382,3.39670708,17450.0,17449.0,0.1]
[1673390094603,3.39670708,17450.0,17449.0,0.12245867]
[1673390095123,3.46570708,17450.0,17449.0,0.12345867]
[1673390096357,3.99505081,17450.0,17449.0,0.12345867]
[1673390097575,4.45185959,17450.0,17449.0,0.101]
[1673390100460,4.45185959,17450.0,17449.0,0.12478262]
[1673390101730,3.99505081,17450.0,17449.0,0.72236462]
[1673390102471,3.65264948,17450.0,17449.0,0.72236462]
[1673390102732,3.65264948,17450.0,17449.0,0.72044262]
[1673390103954,3.65264948,17450.0,17449.0,0.02478262]
[1673390103955,4.35524538,17450.0,17449.0,0.02478262]
[1673390104198,5.21731616,17450.0,17449.0,0.02478262]
[1673390104448,5.39649254,17450.0,17449.0,0.02478262]
[1673390104711,5.97427254,17450.0,17448.0,0.04373294]
[1673390104961,3.43219356,17449.0,17445.0,0.61203814]
[1673390105203,0.42813507,17446.0,17445.0,0.61203814]
[1673390105444,1.95353771,17446.0,17445.0,0.61203814]
[1673390105677,1.69665667,17446.0,17445.0,0.61203814]
[1673390105929,0.74445103,17446.0,17445.0,0.61203814]
[1673390106258,1.10355803,17446.0,17445.0,0.61203814]
[1673390106761,0.74445103,17446.0,17445.0,0.61203814]
[1673390107010,0.932304,17446.0,17445.0,0.61203814]
[1673390107524,1.63880695,17446.0,17445.0,0.61203814]
[1673390108039,1.27969995,17446.0,17445.0,0.61203814]
[1673390108296,0.93160995,17446.0,17445.0,0.61203814]
[1673390108522,0.99860995,17446.0,17445.0,0.61203814]
[1673390109009,0.99860995,17446.0,17445.0,0.61381414]
[1673390109226,0.99860995,17446.0,17445.0,0.61203814]
[1673390109446,0.63950295,17446.0,17445.0,0.61203814]
[1673390109712,0.99860995,17446.0,17445.0,0.61203814]
[1673390110214,0.63950295,17446.0,17445.0,0.61203814]
[1673390110469,0.99860995,17446.0,17445.0,0.61203814]
[1673390112742,0.63950295,17446.0,17445.0,0.61203814]
[1673390112993,0.99860995,17446.0,17445.0,0.61203814]
[1673390114815,0.63950295,17446.0,17445.0,0.61203814]
[1673390117081,0.99860995,17446.0,17445.0,0.61203814]
[1673390117835,0.63950295,17446.0,17445.0,0.61203814]
[1673390118847,0.99860995,17446.0,17445.0,0.61203814]
[1673390119318,0.63950295,17446.0,17445.0,0.61203814]
[1673390120330,0.99860995,17446.0,17445.0,0.61203814]
[1673390120599,0.63950295,17446.0,17445.0,0.61203814]
[1673390120854,0.99860995,17446.0,17445.0,0.61203814]
[1673390121124,0.63950295,17446.0,17445.0,0.61203814]
[1673390121380,0.99860995,17446.0,17445.0,0.61203814]
[1673390121627,0.63950295,17446.0,17445.0,0.61203814]
[1673390123810,0.99860995,17446.0,17445.0,0.61203814]
[1673390125864,0.63950295,17446.0,17445.0,0.61203814]
[1673390126373,0.63950295,17446.0,17445.0,0.61240394]
[1673390126586,0.06693046,17446.0,17445.0,0.61203814]
[1673390127349,0.06693046,17446.0,17445.0,0.61240394]
[1673390128611,0.06693046,17446.0,17445.0,0.61203814]
[1673390131341,0.06693046,17446.0,17445.0,0.61240394]
[1673390132510,0.06693046,17446.0,17445.0,0.7843186]
[1673390132768,0.06693046,17446.0,17445.0,0.92046301]
[1673390133280,0.06693046,17446.0,17445.0,1.59369301]
[1673390133535,0.06693046,17446.0,17445.0,2.21037025]
[1673390133788,0.06693046,17446.0,17445.0,1.95280001]
[1673390134032,0.06693046,17446.0,17445.0,2.21000445]
[1673390134280,0.06693046,17446.0,17445.0,1.59332721]
[1673390134529,0.06693046,17446.0,17445.0,1.42141255]
[1673390135279,0.06693046,17446.0,17445.0,0.84818255]
[1673390140545,0.06693046,17446.0,17445.0,0.84854835]
[1673390140795,0.06693046,17446.0,17445.0,0.84818255]
[1673390142503,0.23818449,17446.0,17445.0,0.84818255]
[1673390142731,0.06693046,17446.0,17445.0,0.84818255]
[1673390144355,0.06693046,17446.0,17445.0,0.71203814]
[1673390146102,0.23818449,17446.0,17445.0,0.71203814]
[1673390146610,0.06693046,17446.0,17445.0,0.71203814]
[1673390147676,0.23818449,17446.0,17445.0,0.71203814]
[1673390152005,0.17125403,17446.0,17445.0,0.71203814]
[1673390152254,0.30625403,17446.0,17445.0,0.71203814]
[1673390153307,0.30625403,17446.0,17445.0,0.71240394]
[1673390153564,0.30625403,17446.0,17445.0,0.71203814]
[1673390159593,0.66536103,17446.0,17445.0,0.71203814]
[1673390159852,0.66536103,17446.0,17445.0,0.71194182]
[1673390160358,1.43448509,17446.0,17445.0,0.71194182]
[1673390160609,1.60573912,17446.0,17445.0,0.71194182]
[1673390161131,1.24663212,17446.0,17445.0,0.71194182]
[1673390161879,1.60573912,17446.0,17445.0,0.71194182]
[1673390162356,1.24663212,17446.0,17445.0,0.71194182]
[1673390162574,1.0755617,17446.0,17445.0,0.71194182]
[1673390162825,1.24663212,17446.0,17445.0,0.71194182]
[1673390163605,1.07554777,17446.0,17445.0,0.71194182]
[1673390166134,1.60573912,17446.0,17445.0,0.71194182]
[1673390168130,1.24663212,17446.0,17445.0,0.71194182]
[1673390168351,1.07550565,17446.0,17445.0,0.71194182]
[1673390168575,1.07550565,17446.0,17445.0,0.11194182]
[1673390168831,1.07550565,17446.0,17445.0,0.71194182]
[1673390169346,1.60573912,17446.0,17445.0,0.71194182]
[1673390169603,1.26323106,17446.0,17445.0,0.71194182]
[1673390169833,1.43458719,17446.0,17445.0,0.71194182]
[1673390170129,1.07548019,17446.0,17445.0,0.71194182]
[1673390170394,1.41798825,17446.0,17445.0,0.71194182]
[1673390170619,1.07548019,17446.0,17445.0,0.71194182]
[1673390171372,1.43458719,17446.0,17445.0,0.71194182]
[1673390171615,1.07548019,17446.0,17445.0,0.71194182]
[1673390171863,1.43458719,17446.0,17445.0,0.71194182]
[1673390172355,1.07548019,17446.0,17445.0,0.71194182]
[1673390173929,1.41798825,17446.0,17445.0,0.71194182]
[1673390174232,1.77709525,17446.0,17445.0,0.11194182]
[1673390174419,1.77709525,17446.0,17445.0,0.71194182]
[1673390174420,1.60573912,17446.0,17445.0,0.71194182]
[1673390174694,1.43462208,17446.0,17445.0,0.71194182]
[1673390174922,1.07551088,17446.0,17445.0,0.71194182]
[1673390175912,1.4180233,17446.0,17445.0,0.71194182]
[1673390176174,1.07551524,17446.0,17445.0,0.11194182]
[1673390176426,1.07551524,17446.0,17445.0,0.71194182]
[1673390177417,1.24663212,17446.0,17445.0,0.71194182]
[1673390177703,1.41804273,17446.0,17445.0,0.71194182]
[1673390177957,1.24663212,17446.0,17445.0,0.71194182]
[1673390179424,1.60573912,17446.0,17445.0,0.71194182]
[1673390181722,2.37009179,17446.0,17445.0,0.71194182]
[1673390182002,2.19907936,17446.0,17445.0,0.71194182]
[1673390182329,1.60598072,17446.0,17445.0,0.71194182]
[1673390182514,1.34885808,17446.0,17445.0,0.71194182]
[1673390182767,1.77699315,17446.0,17445.0,0.71194182]
[1673390183275,2.29525139,17446.0,17445.0,0.71194182]
[1673390183500,2.88835003,17446.0,17445.0,0.71194182]
[1673390184011,2.29525139,17446.0,17445.0,0.71194182]
[1673390184264,2.5820891,17446.0,17445.0,0.71194182]
[1673390184483,2.29524716,17446.0,17445.0,0.71194182]
[1673390185522,1.41788615,17446.0,17445.0,0.71194182]
[1673390185784,1.11186248,17446.0,17445.0,0.71194182]
[1673390186027,2.88932748,17446.0,17445.0,0.71194182]
[1673390186283,2.41081942,17446.0,17445.0,0.71194182]
[1673390186508,2.41081942,17446.0,17445.0,0.11194182]
[1673390186835,3.12001642,17446.0,17445.0,0.11194182]
[1673390187292,3.46282451,17446.0,17445.0,0.11194182]
[1673390187544,3.12001642,17446.0,17445.0,0.11194182]
[1673390188240,3.46279501,17446.0,17445.0,0.11194182]
[1673390188711,3.46279045,17446.0,17445.0,0.11194182]
[1673390188962,3.52361466,17446.0,17445.0,0.01194182]
[1673390189990,3.12001642,17446.0,17445.0,0.01194182]
[1673390190459,3.46280671,17446.0,17445.0,0.01194182]
[1673390190687,3.12001642,17446.0,17445.0,0.01194182]
[1673390191153,3.11987593,17446.0,17445.0,0.01194182]
[1673390191593,3.46267661,17446.0,17445.0,0.01194182]
[1673390191819,2.86957797,17446.0,17445.0,0.61194182]
[1673390192085,2.35134228,17446.0,17445.0,0.61194182]
[1673390192313,2.51011326,17446.0,17445.0,0.61194182]
[1673390192563,2.86922026,17446.0,17445.0,0.61194182]
[1673390193367,2.60846948,17446.0,17445.0,0.61194182]
[1673390193557,2.18033441,17446.0,17445.0,0.61194182]
[1673390193773,2.1803492,17446.0,17445.0,0.61194182]
[1673390194303,1.6071522,17446.0,17445.0,0.61194182]
[1673390196525,1.77814528,17446.0,17445.0,0.61194182]
[1673390197326,2.03532455,17446.0,17445.0,0.61194182]
[1673390197574,1.64214528,17446.0,17445.0,0.61194182]
[1673390198519,2.16134717,17446.0,17445.0,0.61194182]
[1673390198765,1.80224017,17446.0,17445.0,0.61194182]
[1673390198988,1.64214528,17446.0,17445.0,0.61194182]
[1673390199456,2.75445073,17446.0,17445.0,0.61194182]
[1673390199728,3.69467141,17446.0,17445.0,0.61194182]
[1673390199967,3.26653634,17446.0,17445.0,0.61194182]
[1673390200217,3.83973334,17446.0,17445.0,0.61194182]
[1673390202710,4.2684295,17446.0,17445.0,0.61194182]
[1673390203222,3.9093225,17446.0,17445.0,0.61194182]
[1673390203477,4.2684295,17446.0,17445.0,0.61194182]
[1673390203697,3.83973334,17446.0,17445.0,0.61194182]
[1673390204203,4.26841632,17446.0,17445.0,0.61194182]
[1673390204715,2.52829632,17446.0,17445.0,0.61194182]
[1673390206229,2.52829632,17446.0,17445.0,0.01194182]
[1673390206482,3.83973767,17446.0,17445.0,0.01194182]
[1673390206740,4.26842348,17446.0,17445.0,0.01194182]
[1673390207491,4.84162048,17446.0,17445.0,0.01194182]
[1673390208505,4.41293467,17446.0,17445.0,0.01194182]
[1673390214490,4.41293467,17446.0,17445.0,0.01183667]
[1673390218364,4.92670264,17446.0,17445.0,0.01183667]
[1673390220156,4.41460011,17446.0,17445.0,0.01183667]
[1673390220411,5.03651272,17446.0,17445.0,0.01183667]
[1673390220935,5.33651272,17446.0,17445.0,0.01183667]
[1673390221193,5.61590378,17446.0,17445.0,0.01183667]
[1673390221449,5.91590378,17446.0,17445.0,0.01183667]
[1673390221694,5.47990378,17446.0,17445.0,0.01183667]
[1673390221950,5.91590378,17446.0,17445.0,0.01183667]